[Event "XX Gran Hotel Bali-B 2023"]
[Site "Benidorm"]
[Date "2023.12.07"]
[Round "8.10"]
[White "Stanchev, Aleksandar"]
[Black "Ziobrowska, Maja"]
[Result "*"]
[ECO "D02"]
[WhiteElo "1948"]
[BlackElo "1678"]
[Annotator "RC"]
[PlyCount "32"]
[EventDate "2023.12.02"]
[EventType "swiss"]
[EventCountry "ESP"]
[SourceTitle "playchess.com"]
[Source "ChessBase"]
[SourceQuality "1"]
[TimeControl "5400+30"]

1. Nf3 {[%emt 0:00:18]} Nf6 {[%emt 0:00:12]} 2. d4 {[%emt 0:00:16]} d5 {[%emt 0:00:09]} 3. g3 {[%emt 0:00:24]} e6 {[%emt 0:00:24]} 4. Bg2 {[%emt 0:00:05]} Bd6 {[%emt 0:00:31]} 5. b3 {[%emt 0:00:48]} Nbd7 {[%emt 0:01:32]} 6. Bb2 {[%emt 0:01:18]} Ne4 {[%emt 0:01:10]} 7. O-O {[%emt 0:01:06]} h5 {[%emt 0:03:07]} 8. Nbd2 {[%emt 0:07:00]} Ndf6 {[%emt 0:03:32]} 9. Ne5 {[%emt 0:02:44]} h4 {[%emt 0:09:27]} 10. Nxe4 {[%emt 0:17:26]} Nxe4 {[%emt 0:04:56]} 11. Qd3 {[%emt 0:05:17]} f6 {[%emt 0:11:14]} 12. f3 {[%emt 0:01:18]} hxg3 {[%emt 0:13:37]} 13. fxe4 {[%emt 0:00:20]} fxe5 {[%emt 0:01:46]} 14. Qxg3 {[%emt 0:01:44]} exd4 {[%emt 0:11:46]} 15. Qg6+ {[%emt 0:09:20]} Kd7 {[%emt 0:01:09]} 16. h3 {[%emt 0:10:03]} Qe8 {[%emt 0:09:19]} *

[Event "XX Gran Hotel Bali-B 2023"]
[Site "Benidorm"]
[Date "2023.12.07"]
[Round "8.11"]
[White "Bethencourt Hernandez, Alberto"]
[Black "Pena Torres, Jose Carlos"]
[Result "1-0"]
[ECO "C15"]
[WhiteElo "1869"]
[BlackElo "1921"]
[Annotator "NA RC"]
[PlyCount "51"]
[EventDate "2023.12.02"]
[EventType "swiss"]
[EventCountry "ESP"]
[SourceTitle "playchess.com"]
[Source "ChessBase"]
[SourceQuality "1"]
[TimeControl "5400+30"]

1. e4 {[%emt 0:00:04]} e6 {[%emt 0:00:13]} 2. d4 {[%emt 0:00:13]} d5 {[%emt 0:00:06]} 3. Nc3 {[%emt 0:00:17]} Bb4 {[%emt 0:00:11]} 4. Nge2 {[%emt 0:00:14]} Nf6 {[%emt 0:00:23]} 5. e5 {[%emt 0:00:48]} Nfd7 {[%emt 0:00:07]} 6. a3 {[%emt 0:01:18]} Be7 {[%emt 0:00:50]} 7. Be3 {[%emt 0:01:24]} c5 {[%emt 0:00:58]} 8. f4 {[%emt 0:00:21]} b6 {[%emt 0:01:15]} 9. g3 {[%emt 0:03:56]} Ba6 {[%emt 0:01:16]} 10. Bg2 {[%emt 0:01:07]} Nc6 {[%emt 0:01:51]} 11. f5 {[%emt 0:02:36]} cxd4 {[%emt 0:03:37]} 12. Nxd4 {[%emt 0:02:42]} Nxd4 {[%emt 0:05:57]} 13. Bxd4 {[%emt 0:00:18]} Qc7 {[%emt 0:03:08]} 14. fxe6 {[%emt 0:03:37]} fxe6 {[%emt 0:00:21]} 15. Qg4 {[%emt 0:00:28]} Qc6 {[%emt 0:16:46]} 16. Qxg7 {[%emt 0:02:42]} Rf8 {[%emt 0:00:43]} 17. Qxh7 {[%emt 0:01:19]} Rc8 {[%emt 0:04:55]} 18. Qg6+ {[%emt 0:02:18]} Kd8 {[%emt 0:00:08]} 19. Bh3 {[%emt 0:00:49]} Bc5 {[%emt 0:02:47]} 20. O-O-O {[%emt 0:05:56]} Bxd4 {[%emt 0:01:14]} 21. Rxd4 {[%emt 0:00:05]} Nc5 {[%emt 0:01:34]} 22. Qg7 {[%emt 0:02:43]} Rf2 {[%emt 0:01:09]} 23. Rh4 {[%emt 0:04:41]} Nd7 {[%emt 0:01:37]} 24. Qg8+ {[%emt 0:00:25]} Nf8 {[%emt 0:00:58]} 25. Rh7 {[%emt 0:05:50]} d4 {[%emt 0:05:33]} 26. Qg5+ {[%emt 0:00:16]} 1-0

[Event "XX Gran Hotel Bali-B 2023"]
[Site "Benidorm"]
[Date "2023.12.07"]
[Round "8.12"]
[White "Clausen, Karl Erik"]
[Black "Gyaneshwar B"]
[Result "*"]
[ECO "B26"]
[WhiteElo "1899"]
[BlackElo "1712"]
[Annotator "NA RC"]
[PlyCount "32"]
[EventDate "2023.12.02"]
[EventType "swiss"]
[EventCountry "ESP"]
[SourceTitle "playchess.com"]
[Source "ChessBase"]
[SourceQuality "1"]
[TimeControl "5400+30"]

1. e4 {[%emt 0:00:04]} c5 {[%emt 0:04:59]} 2. Nc3 {[%emt 0:00:18]} d6 {[%emt 1:26:31]} 3. g3 {[%emt 0:00:08]} Nc6 {[%emt 0:01:44]} 4. Bg2 {[%emt 0:00:02]} g6 {[%emt 0:00:21]} 5. d3 {[%emt 0:01:23]} Bg7 {[%emt 0:00:23]} 6. Nge2 {[%emt 0:00:45]} Rb8 {[%emt 0:02:29]} 7. Be3 {[%emt 0:02:27]} b5 {[%emt 0:01:04]} 8. Qd2 {[%emt 0:00:49]} b4 {[%emt 0:00:44]} 9. Nd1 {[%emt 0:00:03]} Nd4 {[%emt 0:00:27]} 10. c3 {[%emt 0:07:56]} Nc6 {[%emt 0:02:57]} 11. O-O {[%emt 0:01:56]} h5 {[%emt 1:20:36]} 12. d4 {[%emt 1:20:39]} bxc3 {[%emt 0:19:08]} 13. bxc3 {[%emt 0:05:03]} Ba6 {[%emt 0:07:44]} 14. Re1 {[%emt 0:22:15]} cxd4 {[%emt 0:21:59]} 15. cxd4 {[%emt 0:00:53]} Qd7 {[%emt 0:09:09]} 16. Ndc3 {[%emt 0:09:10]} h4 {[%emt 0:02:45]} *

[Event "XX Gran Hotel Bali-B 2023"]
[Site "Benidorm"]
[Date "2023.12.08"]
[Round "9.1"]
[White "Navarro Rico, Lluis"]
[Black "Sham R"]
[Result "0-1"]
[ECO "A36"]
[WhiteElo "1965"]
[BlackElo "1897"]
[Annotator "RC"]
[PlyCount "120"]
[EventDate "2023.12.02"]
[EventType "swiss"]
[EventCountry "ESP"]
[SourceTitle "playchess.com"]
[Source "ChessBase"]
[SourceQuality "1"]
[TimeControl "5400+30"]

1. c4 {[%emt 0:03:34]} g6 {[%emt 0:08:17]} 2. Nc3 {[%emt 0:05:57]} Bg7 {[%emt 0:00:09]} 3. g3 {[%emt 0:00:05]} e5 {[%emt 0:00:16]} 4. Bg2 {[%emt 0:00:08]} Ne7 {[%emt 0:00:04]} 5. e3 {[%emt 0:00:43]} O-O {[%emt 0:03:00]} 6. Nge2 {[%emt 0:00:12]} c5 {[%emt 0:05:40]} 7. a3 {[%emt 0:00:13]} a5 {[%emt 0:00:44]} 8. Rb1 {[%emt 0:00:04]} Nbc6 {[%emt 0:00:06]} 9. O-O {[%emt 0:00:04]} d6 {[%emt 0:00:44]} 10. d3 {[%emt 0:00:11]} Be6 {[%emt 0:01:17]} 11. Nd5 {[%emt 0:00:04]} Rb8 {[%emt 0:04:15]} 12. Nec3 {[%emt 0:00:15]} h6 {[%emt 0:08:39]} 13. Bd2 {[%emt 0:00:14]} Kh7 {[%emt 0:02:06]} 14. Qc2 {[%emt 0:01:08]} b6 {[%emt 0:04:36]} 15. b4 {[%emt 0:07:51]} axb4 {[%emt 0:03:01]} 16. axb4 {[%emt 0:00:06]} cxb4 {[%emt 0:02:18]} 17. Nxb4 {[%emt 0:00:08]} Nxb4 {[%emt 0:00:08]} 18. Rxb4 {[%emt 0:00:04]} d5 {[%emt 0:00:31]} 19. cxd5 {[%emt 0:00:07]} Nxd5 {[%emt 0:00:11]} 20. Nxd5 {[%emt 0:00:11]} Bxd5 {[%emt 0:00:02]} 21. e4 {[%emt 0:00:16]} Be6 {[%emt 0:01:04]} 22. Rfb1 {[%emt 0:00:12]} Qd7 {[%emt 0:10:03]} 23. Be3 {[%emt 0:02:14]} Rfc8 {[%emt 0:00:43]} 24. Qd2 {[%emt 0:04:57]} b5 {[%emt 0:00:38]} 25. d4 {[%emt 0:06:38]} exd4 {[%emt 0:03:50]} 26. Bf4 {[%emt 0:00:14]} Ra8 {[%emt 0:02:46]} 27. e5 {[%emt 0:14:23]} Ra4 {[%emt 0:00:37]} 28. h4 {[%emt 0:19:58]} Rxb4 {[%emt 0:01:39]} 29. Qxb4 {[%emt 0:03:32]} Bc4 {[%emt 0:02:11]} 30. Rd1 {[%emt 0:00:13]} Bf8 {[%emt 0:12:31]} 31. Qb1 {[%emt 0:00:14]} Be2 {[%emt 0:00:47]} 32. e6 {[%emt 0:08:10]} fxe6 {[%emt 0:02:34]} 33. h5 {[%emt 0:00:14]} d3 {[%emt 0:10:57]} 34. hxg6+ {[%emt 0:03:09]} Kg8 {[%emt 0:00:29]} 35. Rd2 {[%emt 0:01:31]} Rc4 {[%emt 0:00:46]} 36. Be3 {[%emt 0:04:53]} Bb4 {[%emt 0:04:52]} 37. Ra2 {[%emt 0:01:09]} d2 {[%emt 0:01:21]} 38. Bxd2 {[%emt 0:01:39]} Bxd2 {[%emt 0:00:07]} 39. Qb2 {[%emt 0:00:11]} Rd4 {[%emt 0:01:08]} 40. Ra8+ {[%emt 0:01:00]} Kg7 {[%emt 0:00:02]} 41. Qa1 {[%emt 0:00:22]} Kxg6 {[%emt 0:01:55]} 42. Ra7 {[%emt 0:00:23]} Bc3 {[%emt 0:02:26]} 43. Qa6 {[%emt 0:02:58]} Rd6 {[%emt 0:01:46]} 44. Qa2 {[%emt 0:01:26]} Rd2 {[%emt 0:00:34]} 45. Qa6 {[%emt 0:06:04]} Rd1+ {[%emt 0:00:34]} 46. Kh2 {[%emt 0:00:08]} Rd6 {[%emt 0:00:32]} 47. Qa2 {[%emt 0:01:06]} Rd2 {[%emt 0:00:02]} 48. Qa3 {[%emt 0:01:08]} b4 {[%emt 0:00:14]} 49. Qa5 {[%emt 0:00:27]} Qb5 {[%emt 0:00:30]} 50. Be4+ {[%emt 0:01:05]} Kf6 {[%emt 0:00:22]} 51. Qc7 {[%emt 0:01:38]} Qh5+ {[%emt 0:00:56]} 52. Kg2 {[%emt 0:00:01]} Qg5 {[%emt 0:00:56]} 53. Qe7+ {[%emt 0:00:59]} Ke5 {[%emt 0:00:05]} 54. f4+ {[%emt 0:00:37]} Kxe4 {[%emt 0:00:02]} 55. Qxe6+ {[%emt 0:02:34]} Qe5 {[%emt 0:00:14]} 56. Qg6+ {[%emt 0:00:37]} Ke3 {[%emt 0:00:09]} 57. Qb6+ {[%emt 0:00:48]} Bd4 {[%emt 0:00:38]} 58. fxe5 {[%emt 0:00:30]} Bg4+ {[%emt 0:00:04]} 59. Kf1 {[%emt 0:00:11]} Rd1+ {[%emt 0:00:05]} 60. Kg2 {[%emt 0:00:20]} Bf3+ {[%emt 0:00:01]} 0-1

[Event "XX Gran Hotel Bali-B 2023"]
[Site "Benidorm"]
[Date "2023.12.08"]
[Round "9.2"]
[White "Kao, Jamison Edrich"]
[Black "Vladut, Matei"]
[Result "1/2-1/2"]
[ECO "B06"]
[WhiteElo "1835"]
[BlackElo "1989"]
[Annotator "RC"]
[PlyCount "185"]
[EventDate "2023.12.02"]
[EventType "swiss"]
[EventCountry "ESP"]
[SourceTitle "playchess.com"]
[Source "ChessBase"]
[SourceQuality "1"]
[TimeControl "5400+30"]

1. e4 {[%emt 0:00:02]} g6 {[%emt 0:01:17]} 2. d4 {[%emt 0:00:30]} Bg7 {[%emt 0:00:05]} 3. Be3 {[%emt 0:00:51]} c5 {[%emt 0:00:06]} 4. Nc3 {[%emt 0:03:27]} cxd4 {[%emt 0:00:08]} 5. Bxd4 {[%emt 0:00:04]} Nf6 {[%emt 0:00:04]} 6. Be2 {[%emt 0:05:16]} d6 {[%emt 0:00:08]} 7. g4 {[%emt 0:01:02]} Nc6 {[%emt 0:02:39]} 8. Be3 {[%emt 0:00:50]} Qa5 {[%emt 0:01:29]} 9. Bd2 {[%emt 0:02:53]} Qd8 {[%emt 0:10:54]} 10. g5 {[%emt 0:11:04]} Nd7 {[%emt 0:00:59]} 11. f3 {[%emt 0:00:04]} h6 {[%emt 0:00:59]} 12. gxh6 {[%emt 0:00:38]} Bxh6 {[%emt 0:00:02]} 13. Bxh6 {[%emt 0:00:04]} Rxh6 {[%emt 0:00:07]} 14. Qd2 {[%emt 0:00:09]} Rh7 {[%emt 0:04:04]} 15. O-O-O {[%emt 0:00:39]} Qa5 {[%emt 0:01:50]} 16. f4 {[%emt 0:04:17]} Nb6 {[%emt 0:16:01]} 17. Nf3 {[%emt 0:07:19]} Bd7 {[%emt 0:02:44]} 18. Rhg1 {[%emt 0:05:54]} O-O-O {[%emt 0:00:54]} 19. Kb1 {[%emt 0:08:20]} Na4 {[%emt 0:02:31]} 20. Nd5 {[%emt 0:01:19]} Qxd2 {[%emt 0:00:39]} 21. Rxd2 {[%emt 0:00:14]} Nc5 {[%emt 0:00:22]} 22. Bd3 {[%emt 0:00:50]} Be6 {[%emt 0:18:12]} 23. Ng5 {[%emt 0:03:37]} Rh4 {[%emt 0:02:44]} 24. Be2 {[%emt 0:07:16]} Rxh2 {[%emt 0:07:01]} 25. b4 {[%emt 0:07:53]} Nd7 {[%emt 0:00:58]} 26. Nxe6 {[%emt 0:00:14]} fxe6 {[%emt 0:00:28]} 27. b5 {[%emt 0:00:12]} exd5 {[%emt 0:02:59]} 28. bxc6 {[%emt 0:00:13]} Nf6 {[%emt 0:03:13]} 29. e5 {[%emt 0:00:13]} dxe5 {[%emt 0:00:22]} 30. fxe5 {[%emt 0:01:32]} Rxe2 {[%emt 0:01:02]} 31. Rxe2 {[%emt 0:00:50]} Ne4 {[%emt 0:00:07]} 32. cxb7+ {[%emt 0:00:59]} Kxb7 {[%emt 0:00:01]} 33. Kb2 {[%emt 0:00:48]} g5 {[%emt 0:00:08]} 34. c4 {[%emt 0:00:07]} e6 {[%emt 0:00:05]} 35. cxd5 {[%emt 0:01:03]} exd5 {[%emt 0:00:01]} 36. Rd1 {[%emt 0:00:16]} Kc6 {[%emt 0:00:23]} 37. Rc2+ {[%emt 0:00:34]} Kb6 {[%emt 0:00:28]} 38. e6 {[%emt 0:03:05]} Nf6 {[%emt 0:05:20]} 39. Rf2 {[%emt 0:01:59]} Ne4 {[%emt 0:00:36]} 40. Rf5 {[%emt 0:02:21]} Kc6 {[%emt 0:00:56]} 41. Re5 {[%emt 0:01:01]} Nd6 {[%emt 0:04:26]} 42. Rxg5 {[%emt 0:03:47]} Re8 {[%emt 0:00:32]} 43. Rg6 {[%emt 0:00:44]} Re7 {[%emt 0:00:19]} 44. Kc3 {[%emt 0:05:19]} Nb5+ {[%emt 0:00:49]} 45. Kd3 {[%emt 0:08:38]} Nc7 {[%emt 0:00:08]} 46. Rh1 {[%emt 0:00:31]} Nxe6 {[%emt 0:01:21]} 47. Rhh6 {[%emt 0:00:07]} Kd6 {[%emt 0:00:18]} 48. Ke3 {[%emt 0:01:09]} Ke5 {[%emt 0:00:31]} 49. Rh5+ {[%emt 0:00:18]} Kd6 {[%emt 0:00:11]} 50. Kf3 {[%emt 0:00:12]} Kc5 {[%emt 0:00:25]} 51. Re5 {[%emt 0:02:07]} Nd4+ {[%emt 0:00:27]} 52. Kf4 {[%emt 0:00:03]} Ne2+ {[%emt 0:00:58]} 53. Kf5 {[%emt 0:00:32]} Nd4+ {[%emt 0:00:32]} 54. Kf6 {[%emt 0:00:21]} Rb7 {[%emt 0:02:55]} 55. Rgg5 {[%emt 0:00:57]} Rd7 {[%emt 0:03:52]} 56. Rg3 {[%emt 0:01:07]} Rd6+ {[%emt 0:00:54]} 57. Kg5 {[%emt 0:00:20]} Ra6 {[%emt 0:00:26]} 58. a3 {[%emt 0:01:28]} Kc4 {[%emt 0:00:44]} 59. Ree3 {[%emt 0:00:58]} Nb5 {[%emt 0:00:04]} 60. Kf5 {[%emt 0:01:17]} d4 {[%emt 0:01:33]} 61. Rb3 {[%emt 0:00:01]} Nc3 {[%emt 0:00:45]} 62. Rb4+ {[%emt 0:00:15]} Kc5 {[%emt 0:00:27]} 63. Rd3 {[%emt 0:00:37]} Rd6 {[%emt 0:02:27]} 64. Ke5 {[%emt 0:00:11]} Rd5+ {[%emt 0:00:05]} 65. Kf4 {[%emt 0:00:08]} a5 {[%emt 0:00:09]} 66. Rb2 {[%emt 0:00:17]} Kc4 {[%emt 0:00:18]} 67. Rbd2 {[%emt 0:00:54]} a4 {[%emt 0:00:55]} 68. Kf3 {[%emt 0:00:23]} Rd7 {[%emt 0:00:54]} 69. Kf4 {[%emt 0:01:19]} Rd5 {[%emt 0:03:40]} 70. Kf3 {[%emt 0:00:12]} Rd8 {[%emt 0:00:04]} 71. Kf4 {[%emt 0:00:47]} Rf8+ {[%emt 0:00:18]} 72. Ke5 {[%emt 0:00:18]} Re8+ {[%emt 0:00:02]} 73. Kf4 {[%emt 0:01:06]} Nb5 {[%emt 0:00:55]} 74. Kf3 {[%emt 0:00:28]} Rh8 {[%emt 0:00:41]} 75. Ke4 {[%emt 0:00:24]} Rh4+ {[%emt 0:01:00]} 76. Ke5 {[%emt 0:00:08]} Rh5+ {[%emt 0:00:36]} 77. Ke4 {[%emt 0:00:18]} Nc3+ {[%emt 0:00:10]} 78. Kf4 {[%emt 0:00:19]} Rh4+ {[%emt 0:00:50]} 79. Kg3 {[%emt 0:00:49]} Re4 {[%emt 0:00:19]} 80. Kf3 {[%emt 0:00:31]} Rh4 {[%emt 0:00:36]} 81. Kg3 {[%emt 0:00:08]} Re4 {[%emt 0:00:20]} 82. Kf3 {[%emt 0:00:08]} Kc5 {[%emt 0:00:28]} 83. Rxc3+ {[%emt 0:00:27]} dxc3 {[%emt 0:00:10]} 84. Rc2 {[%emt 0:00:01]} Kd4 {[%emt 0:00:40]} 85. Rxc3 {[%emt 0:00:16]} Rh4 {[%emt 0:00:05]} 86. Rc8 {[%emt 0:00:27]} Rh3+ {[%emt 0:00:06]} 87. Ke2 {[%emt 0:00:02]} Rxa3 {[%emt 0:00:06]} 88. Kd2 {[%emt 0:00:03]} Ra2+ {[%emt 0:02:08]} 89. Kc1 {[%emt 0:00:12]} a3 {[%emt 0:00:32]} 90. Kb1 {[%emt 0:00:08]} Rb2+ {[%emt 0:00:06]} 91. Ka1 {[%emt 0:00:03]} Rg2 {[%emt 0:00:41]} 92. Rc1 {[%emt 0:00:04]} Kd3 {[%emt 0:00:13]} 93. Rc8 {[%emt 0:00:08]} 1/2-1/2

[Event "XX Gran Hotel Bali-B 2023"]
[Site "Benidorm"]
[Date "2023.12.08"]
[Round "9.3"]
[White "Santamaria Baeza, Adolfo"]
[Black "Fabre Massana, Miquel"]
[Result "0-1"]
[ECO "B50"]
[WhiteElo "1885"]
[BlackElo "1982"]
[Annotator "NA RC"]
[PlyCount "108"]
[EventDate "2023.12.02"]
[EventType "swiss"]
[EventCountry "ESP"]
[SourceTitle "playchess.com"]
[Source "ChessBase"]
[SourceQuality "1"]
[TimeControl "5400+30"]

1. e4 {[%emt 0:00:09]} c5 {[%emt 0:00:09]} 2. Nf3 {[%emt 0:00:12]} Nc6 {[%emt 0:00:25]} 3. Bc4 {[%emt 0:00:51]} d6 {[%emt 0:00:49]} 4. c3 {[%emt 0:00:38]} Nf6 {[%emt 0:01:19]} 5. d3 {[%emt 0:01:00]} e6 {[%emt 0:02:17]} 6. O-O {[%emt 0:01:11]} Be7 {[%emt 0:00:32]} 7. Bb3 {[%emt 0:02:10]} O-O {[%emt 0:03:24]} 8. Re1 {[%emt 0:05:14]} a6 {[%emt 0:03:30]} 9. Nbd2 {[%emt 0:01:44]} b5 {[%emt 0:01:24]} 10. d4 {[%emt 0:03:00]} Bb7 {[%emt 0:05:08]} 11. Qe2 {[%emt 0:01:55]} Re8 {[%emt 0:04:09]} 12. Bc2 {[%emt 0:02:22]} cxd4 {[%emt 0:02:32]} 13. cxd4 {[%emt 0:02:28]} Qc7 {[%emt 0:03:30]} 14. Nf1 {[%emt 0:01:57]} Rac8 {[%emt 0:02:33]} 15. Bg5 {[%emt 0:02:56]} Nb4 {[%emt 0:04:50]} 16. Bb3 {[%emt 0:03:02]} Bxe4 {[%emt 0:08:44]} 17. Bxf6 {[%emt 0:00:59]} Bxf3 {[%emt 0:00:28]} 18. Qxf3 {[%emt 0:01:01]} Bxf6 {[%emt 0:00:48]} 19. Re4 {[%emt 0:02:43]} Nc6 {[%emt 0:05:03]} 20. Rd1 {[%emt 0:04:34]} Na5 {[%emt 0:02:29]} 21. Rg4 {[%emt 0:00:44]} Qe7 {[%emt 0:02:10]} 22. Ng3 {[%emt 0:00:25]} Nxb3 {[%emt 0:02:46]} 23. Nh5 {[%emt 0:07:23]} Kh8 {[%emt 0:05:31]} 24. axb3 {[%emt 0:01:52]} e5 {[%emt 0:00:53]} 25. h3 {[%emt 0:02:12]} e4 {[%emt 0:03:30]} 26. Qg3 {[%emt 0:01:38]} g6 {[%emt 0:01:55]} 27. Nf4 {[%emt 0:01:30]} Bg7 {[%emt 0:01:49]} 28. Nd5 {[%emt 0:04:31]} Qb7 {[%emt 0:04:19]} 29. Nc3 {[%emt 0:03:44]} d5 {[%emt 0:02:37]} 30. Rg5 {[%emt 0:03:02]} f5 {[%emt 0:01:43]} 31. Qd6 {[%emt 0:01:48]} Rcd8 {[%emt 0:01:29]} 32. Qa3 {[%emt 0:01:03]} Bh6 {[%emt 0:01:26]} 33. Rg3 {[%emt 0:00:33]} b4 {[%emt 0:01:14]} 34. Qa4 {[%emt 0:00:16]} bxc3 {[%emt 0:02:08]} 35. Rxc3 {[%emt 0:00:08]} Rc8 {[%emt 0:01:27]} 36. Ra1 {[%emt 0:00:41]} e3 {[%emt 0:03:00]} 37. fxe3 {[%emt 0:00:27]} Bxe3+ {[%emt 0:00:58]} 38. Kh1 {[%emt 0:00:13]} Qb5 {[%emt 0:00:59]} 39. Rc5 {[%emt 0:05:24]} Rxc5 {[%emt 0:01:22]} 40. dxc5 {[%emt 0:00:11]} Qxa4 {[%emt 0:00:50]} 41. bxa4 {[%emt 0:01:07]} Bxc5 {[%emt 0:00:42]} 42. Rd1 {[%emt 0:00:09]} f4 {[%emt 0:01:18]} 43. h4 {[%emt 0:01:38]} Rd8 {[%emt 0:00:20]} 44. Rd3 {[%emt 0:00:34]} a5 {[%emt 0:00:55]} 45. Kh2 {[%emt 0:00:16]} Be3 {[%emt 0:00:49]} 46. Kh3 {[%emt 0:00:39]} h5 {[%emt 0:00:22]} 47. g4 {[%emt 0:00:19]} d4 {[%emt 0:00:12]} 48. gxh5 {[%emt 0:00:25]} gxh5 {[%emt 0:00:01]} 49. Kg2 {[%emt 0:00:24]} Rg8+ {[%emt 0:01:24]} 50. Kf3 {[%emt 0:00:12]} Rg3+ {[%emt 0:00:38]} 51. Ke4 {[%emt 0:00:26]} f3 {[%emt 0:00:22]} 52. Rb3 {[%emt 0:00:10]} f2 {[%emt 0:00:29]} 53. Rb8+ {[%emt 0:01:16]} Rg8 {[%emt 0:00:17]} 54. Rb5 {[%emt 0:00:07]} Re8+ {[%emt 0:00:42]} 0-1

[Event "XX Gran Hotel Bali-B 2023"]
[Site "Benidorm"]
[Date "2023.12.08"]
[Round "9.4"]
[White "Gyaneshwar B"]
[Black "Sempere Domenech, Abel"]
[Result "1/2-1/2"]
[ECO "E06"]
[WhiteElo "1712"]
[BlackElo "1979"]
[Annotator "RC"]
[PlyCount "108"]
[EventDate "2023.12.02"]
[EventType "swiss"]
[EventCountry "ESP"]
[SourceTitle "playchess.com"]
[Source "ChessBase"]
[SourceQuality "1"]
[TimeControl "5400+30"]

1. d4 {[%emt 0:04:51]} Nf6 {[%emt 0:00:10]} 2. c4 {[%emt 0:00:31]} e6 {[%emt 0:00:05]} 3. g3 {[%emt 0:00:02]} d5 {[%emt 0:00:14]} 4. Bg2 {[%emt 0:00:02]} Be7 {[%emt 0:00:15]} 5. Nf3 {[%emt 0:00:12]} O-O {[%emt 0:00:13]} 6. O-O {[%emt 0:00:04]} c6 {[%emt 0:00:10]} 7. Nc3 {[%emt 0:01:23]} b6 {[%emt 0:00:08]} 8. Ne5 {[%emt 0:01:29]} Bb7 {[%emt 0:04:01]} 9. e4 {[%emt 0:08:34]} dxc4 {[%emt 0:12:17]} 10. Nxc4 {[%emt 0:00:25]} Na6 {[%emt 0:02:44]} 11. Bf4 {[%emt 0:10:28]} b5 {[%emt 0:07:30]} 12. Ne3 {[%emt 0:15:30]} h6 {[%emt 0:07:33]} 13. d5 {[%emt 0:53:29]} Bc5 {[%emt 0:24:40]} 14. dxe6 {[%emt 0:00:00]} fxe6 {[%emt 0:00:01]} 15. Qb3 {[%emt 0:00:00]} Qe7 {[%emt 0:01:25]} 16. Nf5 {[%emt 0:00:00]} Qf7 {[%emt 0:03:04]} 17. Nd6 {[%emt 0:00:00]} Bxd6 {[%emt 0:00:49]} 18. Bxd6 {[%emt 0:00:00]} Rfd8 {[%emt 0:00:24]} 19. e5 {[%emt 0:00:00]} Ne8 {[%emt 0:03:27]} 20. Bh3 {[%emt 0:00:00]} Nac7 {[%emt 0:00:31]} 21. Bxc7 {[%emt 0:00:00]} Nxc7 {[%emt 0:00:07]} 22. Ne4 {[%emt 0:00:00]} Bc8 {[%emt 0:02:55]} 23. Rac1 {[%emt 0:00:00]} Bd7 {[%emt 0:00:58]} 24. Nc5 {[%emt 0:00:00]} Nd5 {[%emt 0:00:39]} 25. Rfd1 {[%emt 0:00:31]} Kh8 {[%emt 0:02:09]} 26. Rd3 {[%emt 0:01:37]} Rf8 {[%emt 0:01:22]} 27. Nxd7 {[%emt 0:02:20]} Qxd7 {[%emt 0:00:01]} 28. Rf3 {[%emt 0:00:30]} a5 {[%emt 0:01:14]} 29. Qd3 {[%emt 0:00:29]} a4 {[%emt 0:03:15]} 30. a3 {[%emt 0:00:09]} Rad8 {[%emt 0:00:27]} 31. Qe4 {[%emt 0:00:12]} Ne7 {[%emt 0:02:43]} 32. Rfc3 {[%emt 0:00:23]} Qa7 {[%emt 0:01:51]} 33. Qe2 {[%emt 0:01:43]} Qd7 {[%emt 0:02:26]} 34. Qg4 {[%emt 0:00:55]} Nf5 {[%emt 0:03:01]} 35. Qe4 {[%emt 0:01:16]} Nd4 {[%emt 0:00:44]} 36. f4 {[%emt 0:00:14]} Qa7 {[%emt 0:01:00]} 37. Kh1 {[%emt 0:00:31]} Nb3 {[%emt 0:01:00]} 38. Re1 {[%emt 0:00:05]} Rd2 {[%emt 0:00:21]} 39. Rc2 {[%emt 0:00:36]} Rfd8 {[%emt 0:00:19]} 40. Rxd2 {[%emt 0:01:24]} Rxd2 {[%emt 0:00:06]} 41. Qe3 {[%emt 0:00:23]} Qxe3 {[%emt 0:01:26]} 42. Rxe3 {[%emt 0:00:01]} Nd4 {[%emt 0:00:45]} 43. f5 {[%emt 0:00:25]} Nxf5 {[%emt 0:00:48]} 44. Bxf5 {[%emt 0:00:03]} exf5 {[%emt 0:00:02]} 45. e6 {[%emt 0:00:01]} Rd8 {[%emt 0:00:14]} 46. Rc3 {[%emt 0:00:49]} Kg8 {[%emt 0:01:48]} 47. Rxc6 {[%emt 0:00:10]} Kf8 {[%emt 0:01:58]} 48. Rc5 {[%emt 0:01:25]} Ke7 {[%emt 0:03:49]} 49. Rxb5 {[%emt 0:00:27]} Kxe6 {[%emt 0:00:29]} 50. Rb4 {[%emt 0:01:01]} Rd2 {[%emt 0:00:02]} 51. Rxa4 {[%emt 0:00:19]} Rxb2 {[%emt 0:00:02]} 52. Ra5 {[%emt 0:00:12]} Kf6 {[%emt 0:00:14]} 53. Kg1 {[%emt 0:00:24]} Kg5 {[%emt 0:00:35]} 54. h3 {[%emt 0:00:32]} g6 {[%emt 0:08:59]} 1/2-1/2

[Event "XX Gran Hotel Bali-B 2023"]
[Site "Benidorm"]
[Date "2023.12.08"]
[Round "9.5"]
[White "Conde Chamizo, Pablo"]
[Black "Stanchev, Aleksandar"]
[Result "1/2-1/2"]
[ECO "E08"]
[WhiteElo "1869"]
[BlackElo "1948"]
[Annotator "NA RC"]
[PlyCount "70"]
[EventDate "2023.12.02"]
[EventType "swiss"]
[EventCountry "ESP"]
[SourceTitle "playchess.com"]
[Source "ChessBase"]
[SourceQuality "1"]
[TimeControl "5400+30"]

1. c4 {[%emt 0:05:47]} Nf6 {[%emt 0:00:12]} 2. g3 {[%emt 0:00:07]} e6 {[%emt 0:00:50]} 3. Bg2 {[%emt 0:00:49]} d5 {[%emt 0:00:12]} 4. d4 {[%emt 0:00:37]} c6 {[%emt 0:02:31]} 5. Qc2 {[%emt 0:03:05]} Nbd7 {[%emt 0:01:27]} 6. Nf3 {[%emt 0:02:01]} Be7 {[%emt 0:02:09]} 7. O-O {[%emt 0:03:27]} b6 {[%emt 0:01:41]} 8. Rd1 {[%emt 0:08:54]} Bb7 {[%emt 0:00:33]} 9. b3 {[%emt 0:02:22]} O-O {[%emt 0:01:46]} 10. Nc3 {[%emt 0:00:31]} Rc8 {[%emt 0:01:22]} 11. cxd5 {[%emt 0:05:51]} cxd5 {[%emt 0:01:15]} 12. Bb2 {[%emt 0:00:41]} b5 {[%emt 0:05:52]} 13. Qd3 {[%emt 0:03:35]} b4 {[%emt 0:15:05]} 14. Na4 {[%emt 0:02:49]} Qa5 {[%emt 0:02:08]} 15. a3 {[%emt 0:02:11]} Ba6 {[%emt 0:00:27]} 16. axb4 {[%emt 0:02:39]} Bxb4 {[%emt 0:00:12]} 17. Qe3 {[%emt 0:02:30]} Qb5 {[%emt 0:02:03]} 18. Bf1 {[%emt 0:10:51]} Ne4 {[%emt 0:04:25]} 19. Rdc1 {[%emt 0:06:35]} Qb7 {[%emt 0:10:27]} 20. Nc3 {[%emt 0:06:51]} Nxc3 {[%emt 0:14:03]} 21. Bxc3 {[%emt 0:01:55]} Be7 {[%emt 0:02:05]} 22. Qd2 {[%emt 0:02:03]} Bb5 {[%emt 0:01:41]} 23. Bb4 {[%emt 0:05:13]} Nf6 {[%emt 0:01:18]} 24. Bxe7 {[%emt 0:01:05]} Qxe7 {[%emt 0:00:02]} 25. Qa5 {[%emt 0:00:08]} a6 {[%emt 0:01:17]} 26. e3 {[%emt 0:03:15]} Qb7 {[%emt 0:00:36]} 27. Bxb5 {[%emt 0:00:47]} axb5 {[%emt 0:01:37]} 28. Rxc8 {[%emt 0:00:49]} Rxc8 {[%emt 0:00:08]} 29. Qa6 {[%emt 0:01:11]} Qxa6 {[%emt 0:02:55]} 30. Rxa6 {[%emt 0:00:21]} Ne4 {[%emt 0:00:50]} 31. Rb6 {[%emt 0:02:51]} f6 {[%emt 0:02:45]} 32. Ne1 {[%emt 0:03:44]} Rc1 {[%emt 0:01:09]} 33. Kf1 {[%emt 0:00:04]} Rb1 {[%emt 0:01:22]} 34. Rxb5 {[%emt 0:01:51]} Rxb3 {[%emt 0:01:11]} 35. Rxb3 {[%emt 0:00:04]} Nd2+ {[%emt 0:00:01]} 1/2-1/2